bitfinex-derivatives/quotes_SOLF0:USTF0_20250413
["timestamp","ask_amount","ask_price","bid_price","bid_amount"]
[1744537672801,0.04465946,130.87,130.86,7.65830707]
[1744537673107,0.04465946,130.87,130.86,15.30210707]
[1744537673510,28.76,130.91,130.86,14.8258274]
[1744537673708,28.76,130.91,130.86,7.65830707]
[1744537674215,36.4012,130.91,130.87,15.30100707]
[1744537674514,28.76,130.91,130.88,0.0556638]
[1744537674715,7.6421,130.89,130.88,0.0556638]
[1744537676719,7.6442,130.86,130.83,2.0881]
[1744537677118,7.6442,130.86,130.83,9.7333]
[1744537677319,28.74,130.88,130.84,7.65586235]
[1744537677822,0.04860677,130.87,130.85,0.05884251]
[1744537678416,7.6438,130.86,130.85,0.05884251]
[1744537683724,7.69200677,130.87,130.85,0.05884251]
[1744537684426,7.6438,130.86,130.85,0.05884251]
[1744537684823,0.04860677,130.87,130.85,7.70324251]
[1744537688025,7.69200677,130.87,130.85,0.05884251]
[1744537688427,0.04860677,130.87,130.85,0.05884251]
[1744537688627,0.04860677,130.87,130.85,7.70274251]
[1744537688817,28.74,130.91,130.85,0.05884251]
[1744537689021,28.74,130.93,130.86,9.1790159]
[1744537689221,36.3801,130.93,130.9,7.6412]
[1744537690121,605.4,131.0,130.9,0.05683181]
[1744537690327,28.74,131.02,130.91,46.64950997]
[1744537690524,28.74,131.02,130.94,0.05082112]
[1744537690724,7.6381,130.96,130.92,44.01132168]
[1744537691124,28.74,130.98,130.93,7.68459892]
[1744537691427,28.74,130.98,130.93,0.05327724]
[1744537691628,28.74,130.98,130.93,2.15657724]
[1744537691927,36.3769,130.98,130.94,7.6389]
[1744537692127,36.3769,130.98,130.94,15.26248059]
[1744537692630,36.3769,130.98,130.94,7.6389]
[1744537693125,7.6374,130.97,130.93,9.79607724]
[1744537693529,28.74,130.98,130.93,2.15657724]
[1744537693730,7.6375,130.97,130.93,9.79607724]
[1744537694834,7.638,130.96,130.93,2.15657724]
[1744537695025,7.638,130.96,130.93,0.05327724]
[1744537695635,36.3773,130.98,130.94,7.6391]
[1744537695834,28.74,130.98,130.94,7.6391]
[1744537696030,28.74,130.98,130.93,0.05327724]
[1744537696230,36.3772,130.98,130.94,7.6389]
[1744537697337,28.74,130.98,130.93,7.69277724]
[1744537697537,28.74,130.98,130.93,0.05327724]
[1744537698029,7.6383,130.96,130.93,0.05327724]
[1744537698435,7.6387,130.95,130.93,0.05327724]
[1744537699632,7.6383,130.96,130.93,0.05327724]
[1744537699835,7.6383,130.96,130.93,7.69297724]
[1744537700137,7.6383,130.96,130.93,0.05327724]
[1744537700338,28.74,130.98,130.93,0.05327724]
[1744537700836,7.6392,130.94,130.93,0.05327724]
[1744537702438,7.6385,130.96,130.93,0.05327724]
[1744537702629,7.6385,130.96,130.89,30.8268]
[1744537702832,7.6385,130.96,130.93,0.05402855]
[1744537703036,7.6377,130.97,130.93,0.05402855]
[1744537703939,7.6381,130.96,130.93,0.05402855]
[1744537704139,28.72,130.98,130.93,0.05402855]
[1744537705041,7.6389,130.95,130.93,0.05402855]
[1744537705439,28.72,130.98,130.93,0.05402855]
[1744537706843,7.6383,130.96,130.93,7.69372855]
[1744537707042,7.6383,130.96,130.93,0.05402855]
[1744537707542,7.6377,130.97,130.93,0.05402855]
[1744537707945,28.72,130.98,130.93,7.69342855]
[1744537708241,28.72,130.98,130.93,0.05402855]
[1744537709242,7.6377,130.97,130.94,7.6392]
[1744537709439,28.72,130.98,130.93,0.05402855]
[1744537709945,28.72,130.98,130.94,7.6389]
[1744537710747,36.3571,130.98,130.94,7.6389]
[1744537711749,7.6374,130.97,130.94,7.6389]
[1744537711950,7.6374,130.97,130.93,7.69362855]
[1744537712143,7.6374,130.97,130.93,0.05402855]
[1744537712750,7.6374,130.97,130.94,7.6389]
[1744537713450,36.3571,130.98,130.94,7.6389]
[1744537714147,28.72,130.98,130.93,0.05402855]
[1744537714360,7.6364,130.99,130.93,0.05402855]
[1744537714950,7.6364,130.99,130.95,7.6381]
[1744537715250,7.6364,130.99,130.96,0.05663876]
[1744537715451,7.6369,130.98,130.96,0.05663876]
[1744537715854,32.7465,131.01,130.96,0.05663876]
[1744537716448,7.6374,130.97,130.96,0.05663876]
[1744537720352,7.637,130.98,130.96,0.05663876]
[1744537720553,28.72,130.99,130.96,0.05663876]
[1744537721253,7.6371,130.98,130.96,0.05663876]
[1744537723654,7.6374,130.97,130.96,0.05663876]
[1744537724258,7.6371,130.98,130.96,0.05663876]
[1744537724444,28.72,130.99,130.96,0.05663876]
[1744537725253,7.6374,130.97,130.96,0.05663876]
[1744537726755,28.72,130.99,130.96,0.05663876]
[1744537727354,7.6368,130.98,130.96,0.05663876]
[1744537727554,28.72,130.99,130.96,0.05663876]
[1744537727756,7.6373,130.98,130.96,0.05663876]
[1744537731054,28.72,130.99,130.96,0.05663876]
[1744537731255,28.72,131.02,130.96,0.05663876]
[1744537731456,28.72,131.02,130.93,4.1804]
[1744537731660,7.6352,131.01,130.98,0.05743443]
[1744537731860,28.72,131.02,130.98,0.05743443]
[1744537732053,0.26889,131.06,130.99,28.72]
[1744537732255,0.26889,131.06,131.0,9.16697867]
[1744537732550,0.26889,131.06,131.01,0.05388149]
[1744537733158,7.6333,131.05,131.01,7.68868149]
[1744537733460,7.6333,131.05,131.02,7.62952479]
[1744537733957,0.26889,131.06,131.02,7.62952479]
[1744537734352,0.26889,131.06,131.01,0.05388149]
[1744537734555,0.26889,131.06,131.03,7.6335]
[1744537734755,0.26889,131.06,131.02,28.72]
[1744537735054,7.6332,131.05,131.02,28.72]
[1744537735249,0.26889,131.06,131.02,28.72]
[1744537735553,7.6329,131.05,131.02,28.72]
[1744537736756,7.6329,131.05,131.02,36.3544]
[1744537738761,7.6335,131.04,131.02,28.72]
[1744537738958,28.72,131.09,131.02,28.72]
[1744537739262,28.72,131.09,131.02,0.05196626]
[1744537740261,7.634,131.03,131.02,0.05196626]
[1744537740863,7.6335,131.04,131.02,0.05196626]
[1744537741157,6.1296,131.11,131.02,0.05196626]
[1744537741357,7.6325,131.06,131.02,7.6342]
[1744537741563,7.6325,131.06,131.05,0.05773118]
[1744537742866,7.6311,131.08,131.05,0.05773118]
[1744537743866,7.6316,131.07,131.05,0.05773118]
[1744537744066,4.0863,131.11,131.05,0.05773118]
[1744537744669,7.6322,131.06,131.05,0.05773118]
[1744537746268,7.6319,131.07,131.05,0.05773118]
[1744537746872,7.6313,131.08,131.05,0.05773118]
[1744537747971,7.6316,131.07,131.05,0.05773118]
[1744537748170,28.7,131.11,131.05,0.05773118]
[1744537748666,7.6322,131.06,131.05,0.05773118]
[1744537756075,7.6317,131.07,131.05,0.05773118]
[1744537756473,28.7,131.11,131.05,0.05773118]
[1744537757276,28.7,131.11,131.05,7.69023118]
[1744537757878,7.6317,131.07,131.05,0.05773118]
[1744537759577,7.6322,131.06,131.05,0.05773118]
[1744537760379,7.6339,131.03,131.0,2.101]
[1744537760573,28.7,131.09,131.0,2.101]
[1744537761272,28.7,131.09,131.01,7.635]
[1744537761472,0.05113588,131.06,131.03,0.05227406]
[1744537761673,28.75113588,131.06,131.03,0.05227406]
[1744537762280,7.6333,131.04,131.03,0.05227406]
[1744537763379,7.633,131.05,131.03,0.05227406]
[1744537763880,7.6333,131.04,131.03,0.05227406]
[1744537764680,7.6332,131.05,131.03,0.05227406]
[1744537764980,28.75113588,131.06,131.03,0.05227406]
[1744537765179,7.6333,131.04,131.03,0.05227406]
[1744537765480,28.75113588,131.06,131.03,0.05227406]
[1744537765682,7.6331,131.05,131.03,0.05227406]
[1744537767681,28.75113588,131.06,131.03,0.05227406]
[1744537767682,7.6333,131.04,131.03,0.05227406]
[1744537768183,7.6331,131.05,131.03,0.05227406]
[1744537768581,28.75113588,131.06,131.03,0.05227406]
[1744537768884,0.05113588,131.06,131.03,0.05227406]
[1744537769481,7.633,131.05,131.03,0.05227406]
[1744537769784,0.05113588,131.06,131.03,0.05227406]
[1744537769986,7.633,131.05,131.03,0.05227406]
[1744537770688,7.68363588,131.06,131.03,7.68587406]
[1744537770986,0.05113588,131.06,131.03,7.68587406]
[1744537771586,0.05113588,131.06,131.03,0.05227406]
[1744537772088,0.05113588,131.06,131.04,7.633]
[1744537775087,7.6329,131.05,131.03,0.05227406]
[1744537775287,7.6329,131.05,131.04,7.64349267]
[1744537776286,7.68353588,131.06,131.04,7.64349267]
[1744537776789,7.68353588,131.06,131.05,7.64349267]
[1744537780893,7.6333,131.05,131.03,0.05227406]
[1744537781495,7.6333,131.05,131.04,7.65081615]
[1744537782896,7.6333,131.04,131.03,0.05227406]
[1744537783693,7.6333,131.04,131.03,7.70279331]
[1744537783890,7.6333,131.04,131.03,0.05227406]
[1744537784093,36.3333,131.04,131.03,0.05227406]
[1744537784797,0.05113588,131.06,131.03,28.75227406]
[1744537784993,0.05113588,131.06,131.04,7.15547156]
[1744537785194,0.05113588,131.06,131.03,28.75227406]
[1744537785394,7.68363588,131.06,131.05,7.6446702]
[1744537785896,7.68363588,131.06,131.03,7.68617406]
[1744537786500,7.68363588,131.06,131.04,7.64519441]
[1744537786896,7.68363588,131.06,131.03,7.68617406]
[1744537787195,0.05113588,131.06,131.04,14.78924409]
[1744537787396,0.05113588,131.06,131.04,7.6332]
[1744537787796,0.05113588,131.06,131.05,7.64539623]
[1744537788100,0.05113588,131.06,131.05,15.27819623]
[1744537788896,0.05113588,131.06,131.05,22.4327828]
[1744537789199,7.6306,131.09,131.06,7.632]
[1744537790199,7.6306,131.09,131.06,7.68422375]
[1744537790497,7.6306,131.09,131.07,7.64006894]
[1744537790899,7.6313,131.08,131.06,0.05222375]
[1744537791200,33.15841,131.12,131.06,0.05222375]
[1744537791600,7.6308,131.09,131.07,7.63970231]
[1744537791795,33.15841,131.12,131.06,0.05222375]
[1744537792200,33.15841,131.12,131.06,7.68432375]
[1744537792501,33.15841,131.12,131.06,0.05222375]
[1744537793203,33.15841,131.12,131.07,7.63882951]
[1744537793503,33.15841,131.12,131.06,0.05222375]
[1744537793705,7.6307,131.09,131.06,0.05222375]
[1744537794502,7.6307,131.09,131.07,7.63764825]
[1744537794805,7.6307,131.09,131.06,0.05222375]
[1744537795706,7.6307,131.09,131.07,7.63745591]
[1744537796212,7.6307,131.09,131.06,0.05222375]
[1744537796411,7.6307,131.09,131.06,7.68402375]
[1744537796912,7.6307,131.09,131.07,7.63619379]
[1744537797512,7.6307,131.09,131.06,7.68402375]
[1744537797713,7.6311,131.08,131.06,0.05222375]
[1744537797912,33.13841,131.12,131.06,0.05222375]
[1744537798210,7.6312,131.08,131.06,0.05222375]
[1744537798413,33.13841,131.12,131.06,0.05222375]
[1744537798816,7.6316,131.07,131.06,0.05222375]
[1744537802317,105.70247195,131.22,131.06,46.6293183]
[1744537802518,7.67450545,131.21,131.07,16.24069455]
[1744537802815,7.67450545,131.21,131.13,0.05394925]
[1744537802816,1.39650545,131.2,131.13,0.05394925]
[1744537803016,28.68,131.19,131.1,7.6293]
[1744537803212,105.70247195,131.22,131.15,0.05036297]
[1744537803407,3.5029587,131.21,131.11,7.62447825]
[1744537803608,30.0763587,131.2,131.17,0.05412737]
[1744537803814,7.6265,131.16,131.11,15.25337825]
[1744537804118,28.68,131.16,131.11,7.6289]
[1744537804318,28.68,131.16,131.08,28.68]
[1744537804519,28.68,131.19,131.09,10.25473945]
[1744537804723,28.68,131.19,131.1,14.74053377]
[1744537804915,0.05297644,131.15,131.12,0.05147207]
[1744537805318,0.05297644,131.15,131.13,7.6276]
[1744537805515,0.05297644,131.15,131.12,0.05147207]
[1744537806021,0.05297644,131.15,131.13,7.6276]
[1744537807316,0.05297644,131.15,131.14,7.6275]
[1744537807521,0.05297644,131.15,131.12,0.05147207]
[1744537807919,105.70247195,131.32,131.13,28.68]
[1744537808122,3.35087895,131.31,131.14,620.82894012]
[1744537808323,1.39547895,131.3,131.15,17.80671503]
[1744537808517,1.39547895,131.3,131.16,28.68]
[1744537808925,1.39547895,131.3,131.19,7.6246]
[1744537809114,2.1162,131.29,131.22,0.05862916]
[1744537809320,28.68,131.28,131.17,7.58707491]
[1744537809520,7.6215,131.25,131.24,0.05233162]
[1744537809722,7.6215,131.25,131.2,7.6237]
[1744537809923,7.6215,131.25,131.23,0.0505869]
[1744537810425,7.6217,131.24,131.23,0.0505869]
[1744537810926,36.28,131.24,131.14,6.2693]
[1744537811129,3.9741,131.23,131.14,4.1153]
[1744537811326,3.9741,131.23,131.14,1.9905]
[1744537811524,3.9741,131.23,131.13,7.6277]
[1744537812029,0.04965045,131.19,131.17,0.05252437]
[1744537812227,28.70965045,131.19,131.17,0.05252437]
[1744537812426,7.6256,131.18,131.17,0.05252437]
[1744537813229,7.6274,131.15,131.1,1.9835]
[1744537813428,28.66,131.16,131.1,1.9835]
[1744537813829,7.628,131.14,131.1,9.613]
[1744537814030,28.66,131.16,131.08,39.20909799]
[1744537814336,7.6291,131.12,131.08,46.83999799]
[1744537814533,7.6291,131.12,131.11,0.05281295]
[1744537816730,28.71054917,131.13,131.04,28.66]
[1744537816925,28.66,131.13,131.04,28.66]
[1744537817531,28.66,131.13,131.04,36.2931]
[1744537817931,0.05275691,131.1,131.07,0.05881961]
[1744537818133,28.71275691,131.1,131.07,0.05881961]
[1744537819030,7.6314,131.08,131.07,0.05881961]
[1744537826431,7.6314,131.08,131.07,1.961e-05]
[1744537828930,9.02909764,131.08,131.07,1.961e-05]
[1744537831836,7.6314,131.08,131.07,1.961e-05]
[1744537832038,9.02912861,131.08,131.07,1.961e-05]
[1744537832544,7.6314,131.08,131.07,1.961e-05]
[1744537833739,9.02911371,131.08,131.07,1.961e-05]
[1744537834849,7.6314,131.08,131.07,1.961e-05]
[1744537835143,15.2514,131.08,131.07,1.961e-05]
[1744537835339,7.6374,130.97,130.96,3.9665]
[1744537835746,28.74,131.0,130.93,7.6395]
[1744537835941,28.74,131.0,130.91,4.1252]
[1744537835942,7.6392,130.94,130.91,4.1252]
[1744537836345,7.6392,130.94,130.91,11.7658]
[1744537836548,7.69607334,130.94,130.91,11.8221361]
[1744537838050,0.05687334,130.94,130.91,4.1815361]
[1744537838253,28.79687334,130.94,130.91,4.1815361]
[1744537838948,7.6403,130.92,130.91,4.1815361]
[1744537839851,28.79687334,130.94,130.91,4.1815361]
[1744537840344,7.6399,130.93,130.91,4.1815361]
[1744537840950,28.79687334,130.94,130.91,4.1815361]
[1744537841557,7.6398,130.93,130.91,4.1815361]
[1744537841750,28.79687334,130.94,130.91,4.1815361]
[1744537842054,7.6403,130.92,130.91,4.1815361]
[1744537844056,7.6403,130.92,130.91,2.0257361]
[1744537844261,7.6416,130.9,130.87,2.1162]
[1744537844557,28.76,130.91,130.87,4.168]
[1744537844952,7.6419,130.9,130.87,4.168]
[1744537845360,7.69161088,130.9,130.87,4.22470929]
[1744537845761,7.69161088,130.9,130.87,11.86790929]
[1744537846160,0.04971088,130.9,130.87,4.22470929]
[1744537846459,28.76,130.94,130.87,4.22470929]
[1744537846659,28.76,130.94,130.87,4.168]
[1744537846861,7.6407,130.92,130.87,4.168]
[1744537847355,7.6407,130.92,130.89,7.6417]
[1744537847552,0.05548692,130.91,130.88,0.05451348]
[1744537847760,28.76,130.94,130.91,7.6406]
[1744537848560,36.3995,130.94,130.91,7.6406]
[1744537848862,36.45702683,130.94,130.91,7.69441669]
[1744537851566,7.6398,130.93,130.91,7.69441669]
[1744537851766,7.6398,130.93,130.91,0.05381669]
[1744537854072,198.34693991,131.17,130.93,22.92]
[1744537854263,6.1571,131.15,130.94,14.3378741]
[1744537854460,28.76,131.14,130.95,61.749061]
[1744537854664,28.76,131.14,130.96,17.711861]
[1744537854861,28.76,131.14,130.97,10.21569283]
[1744537855066,28.76,131.14,131.06,7.6321]
[1744537855262,0.05740314,131.07,131.06,7.6321]
[1744537855461,107.03061484,131.16,131.1,7.6293]
[1744537855664,105.70247195,131.16,131.06,28.76]
[1744537856070,105.70247195,131.16,131.13,7.6277]
[1744537856466,105.70247195,131.16,131.05,2.0536]
[1744537856772,31.45145131,131.22,131.05,2.0536]
[1744537856773,28.76,131.15,131.06,28.76]
[1744537856971,0.04994672,131.12,131.09,0.05352913]
[1744537858571,0.04994672,131.12,131.09,7.68392913]
[1744537858871,0.04994672,131.12,131.09,0.05352913]
[1744537860471,29.92,131.11,131.09,0.05352913]
[1744537860668,7.6299,131.1,131.09,0.05352913]
[1744537860875,29.92,131.11,131.01,1.9559]
[1744537861774,29.92,131.11,131.02,7.6343]
[1744537862073,0.04862125,131.07,131.05,0.05848919]
[1744537862274,29.92,131.06,131.0,1.9532]
[1744537862474,29.92,131.06,130.95,34.0575]
[1744537862675,29.92,131.06,130.95,36.153]
[1744537862875,7.6347,131.02,130.98,7.6366]
[1744537863079,37.5547,131.02,130.98,7.6366]
[1744537863283,0.05457042,131.01,130.99,0.04821788]
[1744537863577,0.05457042,131.01,130.99,7.68431788]
[1744537863765,0.05457042,131.01,130.99,0.04821788]
[1744537864167,29.92,131.02,131.01,7.6351]
[1744537864369,37.5531,131.05,131.01,7.6351]
[1744537865280,0.05149454,131.04,131.02,0.05558626]
[1744537866282,7.6339,131.03,131.02,0.05558626]
[1744537867080,7.68509454,131.04,131.02,0.05558626]
[1744537868180,7.6339,131.03,131.02,0.05558626]
[1744537868982,7.68499454,131.04,131.02,0.05558626]
[1744537869583,7.6339,131.03,131.02,0.05558626]
[1744537871276,7.6355,131.01,130.95,36.153]
[1744537871676,604.7,131.13,130.95,36.153]
[1744537871877,29.92,131.1,130.95,36.153]
[1744537872183,29.92,131.1,130.96,604.72]
[1744537872378,0.0521988,131.04,131.01,0.05390524]
[1744537872580,7.6312,131.08,131.01,29.92]
[1744537872780,7.6312,131.08,131.04,7.6329]
[1744537873481,7.6316,131.07,131.04,7.6329]
[1744537873679,0.04831504,131.07,131.05,0.04962075]
[1744537875181,29.92,131.14,131.05,37.60962075]
[1744537875382,29.92,131.14,131.05,29.92]
[1744537875978,29.92,131.17,131.05,29.92]
[1744537876283,7.6255,131.18,131.14,7.627]
[1744537876583,29.92,131.2,131.14,7.627]
[1744537876786,0.05550689,131.17,131.15,0.05851778]
[1744537877377,604.66,131.25,131.15,0.05851778]
[1744537877685,29.92,131.26,131.14,29.92]
[1744537878385,0.02276885,131.21,131.2,7.6239]
[1744537878579,2.0661,131.3,131.18,29.9]
[1744537878784,634.56,131.31,131.21,7.6233]
[1744537879085,634.56,131.31,131.15,29.9]
[1744537879279,1.39545546,131.3,131.16,7.6259]
[1744537879478,1.39545546,131.3,131.15,29.9]
[1744537879680,1.39545546,131.3,131.22,0.05571413]
[1744537879877,7.6223,131.23,131.22,0.05571413]
[1744537880081,7.6223,131.23,131.15,29.9]
[1744537880288,29.9,131.24,131.19,0.05763458]
[1744537881488,7.624,131.2,131.19,0.05763458]
[1744537882188,29.9,131.24,131.19,0.05763458]
[1744537882788,7.624,131.2,131.19,0.05763458]
[1744537883985,37.524,131.2,131.19,0.05763458]
[1744537884586,29.9,131.2,131.19,0.05763458]
[1744537885086,29.88,131.23,131.19,0.05763458]
[1744537885685,7.624,131.2,131.19,0.05763458]
[1744537886983,29.88,131.23,131.13,31.983]
[1744537887679,29.88,131.23,131.14,7.6271]
[1744537887990,29.88,131.23,131.13,31.983]
[1744537888188,7.6247,131.19,131.17,0.05624534]
[1744537888695,7.6252,131.18,131.17,0.05624534]
[1744537889394,37.5452,131.18,131.17,0.05624534]
[1744537891793,29.92,131.18,131.17,0.05624534]
[1744537892184,0.05363916,131.2,131.17,0.05624534]
[1744537892394,7.625,131.19,131.17,0.05624534]
[1744537893596,7.6252,131.18,131.17,0.05624534]
[1744537894199,7.6248,131.19,131.17,0.05624534]
[1744537894891,0.05363916,131.2,131.17,0.05624534]
[1744537895296,0.05363916,131.2,131.18,7.6251]
[1744537895597,0.05363916,131.2,131.17,0.05624534]
[1744537896191,7.67773916,131.2,131.17,7.68164534]
[1744537896399,0.05363916,131.2,131.17,7.68164534]
[1744537896703,0.05363916,131.2,131.17,0.05624534]
[1744537896897,0.05363916,131.2,131.18,7.6248]
[1744537897599,0.05363916,131.2,131.19,7.6246]
[1744537898098,0.05363916,131.2,131.18,7.6249]
[1744537898398,0.05363916,131.2,131.17,0.05624534]
[1744537898794,0.05363916,131.2,131.19,7.6246]
[1744537898995,2.0326,131.26,131.18,29.9]
[1744537899197,29.9,131.27,131.18,29.9]
[1744537899394,29.9,131.27,131.23,7.6222]
[1744537899600,29.9,131.27,131.18,29.9]
[1744537900100,7.6212,131.25,131.22,7.6226]
[1744537900302,29.9,131.27,131.21,0.0512386]
[1744537902606,7.6223,131.23,131.21,0.0512386]
[1744537902801,29.9,131.27,131.21,0.0512386]
[1744537903505,7.6229,131.22,131.21,0.0512386]
[1744537904398,7.6225,131.23,131.21,0.0512386]
[1744537904702,29.9,131.27,131.21,0.0512386]
[1744537905507,7.6229,131.22,131.21,0.0512386]
[1744537906004,37.5225,131.23,131.21,0.0512386]
[1744537907006,7.6229,131.22,131.21,0.0512386]
[1744537907507,29.9,131.23,131.21,0.0512386]
[1744537907799,29.9,131.26,131.21,0.0512386]
[1744537908008,29.9,131.26,131.19,29.9]
[1744537908204,29.9,131.26,131.22,0.05786542]
[1744537908910,37.5206,131.26,131.23,7.6222]
[1744537909208,37.5206,131.26,131.22,0.05786542]
[1744537909402,37.5206,131.26,131.23,7.622]
[1744537910315,29.9,131.26,131.24,7.6213]
[1744537910504,29.9,131.26,131.22,0.05786542]
[1744537911307,7.6223,131.23,131.22,0.05786542]
[1744537911507,29.9,131.26,131.22,0.05786542]
[1744537912010,7.6221,131.24,131.22,0.05786542]
[1744537912310,29.9,131.26,131.22,0.05786542]
[1744537912606,7.6223,131.23,131.22,0.05786542]
[1744537913112,29.9,131.26,131.22,0.05786542]
[1744537913610,7.6223,131.24,131.22,0.05786542]
[1744537913811,29.9,131.26,131.22,0.05786542]
[1744537914910,7.6223,131.23,131.22,0.05786542]
[1744537917015,7.622,131.24,131.22,0.05786542]
[1744537917416,29.9,131.26,131.22,0.05786542]
[1744537917717,7.6215,131.25,131.22,0.05786542]
[1744537917914,29.9,131.26,131.22,0.05786542]
[1744537918116,29.9,131.26,131.23,7.6221]
[1744537918415,37.5209,131.26,131.23,7.6221]
[1744537919017,7.6213,131.25,131.23,7.6221]
[1744537921617,29.9,131.26,131.22,0.05786542]
[1744537921618,6.2487,131.3,131.24,7.6213]
[1744537921816,29.34,131.29,131.24,7.6213]
[1744537922116,29.34,131.29,131.26,0.05003861]
[1744537922624,7.6203,131.27,131.26,0.05003861]
[1744537923110,29.34,131.29,131.2,7.6235]
[1744537923111,7.6222,131.24,131.2,7.6235]
[1744537923515,29.32,131.25,131.21,7.58025582]
[1744537923716,29.32,131.24,131.21,7.58025582]
[1744537923915,29.32,131.26,131.17,4.0774]
[1744537924115,29.32,131.26,131.18,17.94272721]
[1744537924318,0.05151581,131.23,131.2,0.05484201]
[1744537924621,7.6234,131.22,131.2,0.05484201]
[1744537924822,29.37151581,131.23,131.2,0.05484201]
[1744537925124,7.6229,131.22,131.2,0.05484201]
[1744537925321,29.37151581,131.23,131.2,0.05484201]
[1744537925520,2.0978,131.22,131.2,0.05484201]
[1744537925821,7.6235,131.21,131.2,0.05484201]
[1744537926816,2.0978,131.22,131.12,1.9413]
[1744537927020,4.2418,131.22,131.14,7.6272]
[1744537927519,4.2418,131.22,131.12,29.34]
[1744537927719,4.2418,131.22,131.11,44.47321108]
[1744537927921,368.2418,131.22,131.11,34.87681108]
[1744537928227,7.6287,131.12,131.11,34.87681108]
[1744537930027,7.6293,131.11,131.1,0.05624399]
[1744537932630,0.05640115,131.13,131.1,0.05624399]
[1744537933121,7.6293,131.11,131.1,0.05624399]
[1744537934729,7.68490115,131.13,131.1,0.05624399]
[1744537934922,0.05640115,131.13,131.1,0.05624399]
[1744537935226,7.6287,131.12,131.1,0.05624399]
[1744537935426,0.05640115,131.13,131.1,0.05624399]
[1744537936227,7.6293,131.11,131.1,0.05624399]
[1744537938230,7.68480115,131.13,131.1,0.05624399]
[1744537938827,7.68480115,131.13,131.1,7.68574399]
[1744537939430,0.05640115,131.13,131.11,7.6293]
[1744537939630,0.05640115,131.13,131.1,0.05624399]
[1744537940121,0.05640115,131.13,131.11,7.6289]
[1744537940329,0.05640115,131.13,131.1,0.05624399]
[1744537941228,0.05640115,131.13,131.11,7.629]
[1744537943132,0.05640115,131.13,131.1,7.68584399]
[1744537943333,0.05640115,131.13,131.1,0.05624399]
[1744537943934,0.05640115,131.13,131.11,7.6292]
[1744537944234,0.05640115,131.13,131.1,0.05624399]
[1744537944437,0.05640115,131.13,131.11,7.6288]
[1744537945133,0.05640115,131.13,131.1,0.05624399]
[1744537946235,1.9447,131.19,131.1,0.05624399]
[1744537946437,633.06,131.23,131.1,4.1356]
[1744537946734,36.9826,131.23,131.2,7.624]
[1744537947437,36.9826,131.23,131.2,0.0534679]
[1744537947438,0.05247489,131.23,131.2,0.0534679]
[1744537948131,7.67487489,131.23,131.2,7.6771679]
[1744537950041,0.05247489,131.23,131.21,7.6232]
[1744537950240,0.05247489,131.23,131.2,0.0534679]
[1744537950640,0.05247489,131.23,131.21,7.6235]
[1744537950841,0.05247489,131.23,131.2,0.0534679]
[1744537951240,7.67507489,131.23,131.2,7.6774679]
[1744537951540,0.05247489,131.23,131.2,0.0534679]
[1744537952042,29.09247489,131.23,131.2,0.0534679]
[1744537952538,7.6235,131.21,131.2,0.0534679]
[1744537953843,29.09247489,131.23,131.13,2.1378]
[1744537954140,2.0264,131.2,131.13,2.1378]
[1744537954341,7.6259,131.17,131.14,7.6272]
[1744537954542,29.04,131.19,131.13,2.1378]
[1744537954841,0.05613237,131.17,131.15,0.04916149]
[1744537955543,7.68203237,131.17,131.15,7.67596149]
[1744537955943,0.05613237,131.17,131.15,7.67596149]
[1744537958952,0.05613237,131.17,131.16,7.6264]
[1744537959447,29.04,131.22,131.18,7.6252]
[1744537960147,7.6238,131.21,131.18,7.6252]
[1744537960648,7.67361042,131.21,131.18,7.68288951]
[1744537963548,7.6246,131.19,131.18,0.05768951]
[1744537963752,29.04,131.19,131.08,3.8953]
[1744537964047,29.04,131.19,131.09,17.84430516]
[1744537964249,29.04,131.19,131.13,7.628]
[1744537964748,29.04,131.19,131.15,0.05187487]
[1744537964946,0.05682832,131.17,131.15,0.05187487]
[1744537965452,7.6265,131.16,131.15,0.05187487]
[1744537966352,7.68292832,131.17,131.15,0.05187487]
[1744537966655,0.05682832,131.17,131.15,0.05187487]